bitfinex/quotes_ETHUSD_20250824
["timestamp","ask_amount","ask_price","bid_price","bid_amount"]
[1756037532388,10.6263233,4761.8,4761.7,9.71736771]
[1756037532754,10.6263233,4761.8,4761.7,9.7173078]
[1756037532950,10.3103233,4761.8,4761.7,9.7173078]
[1756037533158,10.3103233,4761.8,4761.7,9.71730708]
[1756037533584,10.3103233,4761.8,4761.7,13.65930708]
[1756037533798,0.04,4762.4,4762.2,0.66]
[1756037533955,0.04,4762.4,4762.3,7.36198454]
[1756037534798,0.04,4762.4,4762.3,7.82708454]
[1756037534993,0.022,4762.8,4762.7,2.75964935]
[1756037535286,0.022,4762.8,4762.7,8.09660818]
[1756037535491,0.338,4762.8,4762.7,8.84405352]
[1756037535694,0.338,4762.8,4762.7,10.99611996]
[1756037536390,0.338,4762.8,4762.7,10.24867462]
[1756037536589,0.022,4762.8,4762.7,10.24867462]
[1756037538692,0.022,4762.8,4762.7,10.35347462]
[1756037539193,0.022,4762.8,4762.7,10.65677462]
[1756037539360,0.022,4762.8,4762.7,11.12187462]
[1756037539553,0.022,4762.8,4762.7,10.65677462]
[1756037540993,0.022,4762.8,4762.7,6.82647462]
[1756037541159,0.7929,4762.8,4762.7,8.20240818]
[1756037542260,0.7929,4762.8,4762.7,8.20161821]
[1756037543191,0.7929,4762.8,4762.7,8.20159818]
[1756037543358,0.338,4762.8,4762.7,8.20159818]
[1756037545182,0.022,4762.8,4762.7,8.20159818]
[1756037545475,0.022,4762.8,4762.7,10.16395425]
[1756037545876,0.022,4762.8,4762.7,14.10589018]
[1756037546074,0.022,4762.8,4762.7,14.19003018]
[1756037549765,0.022,4762.8,4762.7,13.72753018]
[1756037549967,0.022,4762.8,4762.7,14.19003018]
[1756037551969,0.022,4762.8,4762.7,14.93747552]
[1756037552172,0.022,4762.8,4762.7,14.74339076]
[1756037552504,0.022,4762.8,4762.7,15.09393178]
[1756037553070,0.022,4762.8,4762.7,15.09398763]
[1756037553270,0.022,4762.8,4762.7,14.34654229]
[1756037553807,0.022,4762.8,4762.7,14.63046837]
[1756037553991,0.022,4762.8,4762.7,13.88404229]
[1756037554307,0.022,4762.8,4762.7,10.06934229]
[1756037554478,0.3071,4762.8,4762.7,13.59234229]
[1756037554672,0.022,4762.8,4762.7,13.59234229]
[1756037555073,0.3071,4762.8,4762.7,13.43605129]
[1756037555382,0.7634,4762.8,4762.7,12.88554667]
[1756037555608,0.3071,4762.8,4762.7,8.61575522]
[1756037555907,0.7634,4762.8,4762.7,12.13875522]
[1756037556271,0.7634,4762.8,4762.7,12.88554667]
[1756037557176,0.7634,4762.8,4762.7,12.13875522]
[1756037558396,0.7634,4762.8,4762.7,13.25992323]
[1756037559513,0.7634,4762.8,4762.7,9.31792323]
[1756037560224,0.7634,4762.8,4762.7,7.63727388]
[1756037560376,0.7634,4762.8,4762.7,9.93330587]
[1756037560889,0.7634,4762.8,4762.7,12.03295522]
[1756037561875,0.022,4762.8,4762.7,8.48245522]
[1756037562102,0.7634,4762.8,4762.7,5.84419015]
[1756037562323,0.7634,4762.8,4762.7,8.00044935]
[1756037562609,0.7634,4762.8,4762.7,8.0909234]
[1756037563093,0.7634,4762.8,4762.7,4.5699234]
[1756037563295,0.7634,4762.8,4762.7,3.59150826]
[1756037563506,0.7634,4762.8,4762.7,7.11750826]
[1756037563685,0.7634,4762.8,4762.7,5.99634025]
[1756037564703,0.7634,4762.8,4762.7,8.0959896]
[1756037565174,0.3071,4762.8,4762.7,8.0959896]
[1756037565611,0.7634,4762.8,4762.7,8.0959896]
[1756037565777,0.7634,4762.8,4762.7,8.09606209]
[1756037566513,0.7634,4762.8,4762.7,5.99641274]
[1756037567890,0.7634,4762.8,4762.7,2.47041274]
[1756037568192,0.7634,4762.8,4762.7,5.99541274]
[1756037569125,0.7634,4762.8,4762.7,5.99539575]
[1756037571425,0.7634,4762.8,4762.7,2.47039575]
[1756037571591,0.7634,4762.8,4762.7,6.74466472]
[1756037572439,0.7634,4762.8,4762.7,5.99439118]
[1756037575037,0.7634,4762.8,4762.7,2.47039118]
[1756037575229,0.7634,4762.8,4762.7,5.99339118]
[1756037576418,0.7634,4762.8,4762.7,6.74366015]
[1756037577630,0.022,4762.8,4762.7,6.74366015]
[1756037577829,0.3072,4762.8,4762.7,6.74366015]
[1756037579008,0.022,4762.8,4762.7,6.74366015]
[1756037579204,0.022,4762.8,4762.7,10.47859232]
[1756037579405,0.022,4762.8,4762.7,7.628674]
[1756037579604,0.022,4762.8,4762.7,9.72832335]
[1756037580226,0.7519,4762.8,4762.7,7.303774]
[1756037580430,0.7519,4762.8,4762.7,9.93239118]
[1756037580626,0.3072,4762.8,4762.7,9.93239118]
[1756037580950,0.022,4762.8,4762.7,12.34014053]
[1756037581429,0.022,4762.8,4762.7,12.34011097]
[1756037581743,0.022,4762.8,4762.7,10.67626162]
[1756037581920,0.022,4762.8,4762.7,12.34011097]
[1756037582333,0.022,4762.8,4762.7,8.39811097]
[1756037582523,0.022,4762.8,4762.7,8.81637831]
[1756037582843,0.022,4762.8,4762.7,9.25217831]
[1756037584257,0.022,4762.8,4762.7,8.81637831]
[1756037584557,0.022,4762.8,4762.7,8.81645366]
[1756037585255,0.022,4762.8,4762.7,6.71680431]
[1756037585458,0.022,4762.8,4762.7,5.99043697]
[1756037585843,0.022,4762.8,4762.7,8.09008632]
[1756037586047,0.3072,4762.8,4762.7,5.99043697]
[1756037586343,0.3072,4762.8,4762.7,8.09008632]
[1756037587363,0.022,4762.8,4762.7,8.09008632]
[1756037587662,0.022,4762.8,4762.7,9.58344502]
[1756037588062,0.022,4762.8,4762.7,11.14041303]
[1756037590140,0.022,4762.8,4762.7,10.70461303]
[1756037590341,0.3072,4762.8,4762.7,4.77686368]
[1756037590550,0.3072,4762.8,4762.7,9.20925433]
[1756037591067,0.022,4762.8,4762.7,9.01381736]
[1756037591370,0.022,4762.8,4762.7,9.20932468]
[1756037591536,0.022,4762.8,4762.7,5.69132468]
[1756037591736,0.022,4762.8,4762.7,9.20932655]
[1756037592266,0.022,4762.8,4762.7,10.71090914]
[1756037593864,0.3072,4762.8,4762.7,7.1086772]
[1756037594051,0.3072,4762.8,4762.7,5.98750919]
[1756037594052,0.7519,4762.8,4762.7,5.98750919]
[1756037594442,0.7519,4762.8,4762.7,2.47050919]
[1756037594443,0.3072,4762.8,4762.7,2.47050919]
[1756037594654,0.7519,4762.8,4762.7,2.47050919]
[1756037594852,0.7519,4762.8,4762.7,5.98750919]
[1756037595672,0.7519,4762.8,4762.7,2.47050919]
[1756037595871,0.7519,4762.8,4762.7,5.98650919]
[1756037597493,0.3072,4762.8,4762.7,5.98650919]
[1756037597993,0.7519,4762.8,4762.7,5.98550919]
[1756037598392,0.3072,4762.8,4762.7,5.98550919]
[1756037599468,0.3072,4762.8,4762.7,2.47050919]
[1756037600086,0.3072,4762.8,4762.7,5.98550919]
[1756037601394,0.3072,4762.8,4762.7,5.79]
[1756037601576,0.3072,4762.8,4762.7,6.421173]
[1756037602078,0.022,4762.8,4762.7,8.80922235]
[1756037602484,0.022,4762.8,4762.7,6.709573]
[1756037602797,0.022,4762.8,4762.7,8.80922235]
[1756037603003,0.022,4762.8,4762.7,6.709573]
[1756037603304,0.022,4762.8,4762.7,8.80922235]
[1756037603999,0.022,4762.8,4762.7,9.24372235]
[1756037605001,0.022,4762.8,4762.7,11.62193256]
[1756037606113,0.022,4762.8,4762.7,10.50076455]
[1756037614908,0.022,4762.8,4762.7,10.49676455]
[1756037616902,0.022,4762.8,4762.7,6.98576455]
[1756037617236,0.7696,4762.8,4762.7,8.1386456]
[1756037617438,0.7696,4762.8,4762.7,6.416173]
[1756037617736,0.7696,4762.8,4762.7,7.5416034]
[1756037617936,0.7696,4762.8,4762.7,2.246173]
[1756037618137,0.7696,4762.8,4762.7,5.756173]
[1756037618642,0.7696,4762.8,4762.7,6.416173]
[1756037619241,0.7696,4762.8,4762.7,5.786]
[1756037620112,0.7696,4762.8,4762.7,2.275]
[1756037620437,0.7696,4762.8,4762.7,5.785]
[1756037624917,0.3183,4762.8,4762.7,2.275]
[1756037625241,0.3183,4762.8,4762.7,5.784]
[1756037625919,0.3183,4762.8,4762.7,6.2353]
[1756037626114,0.3183,4762.8,4762.7,10.1773]
[1756037626349,0.022,4762.8,4762.7,10.1773]
[1756037626520,0.022,4762.8,4762.7,10.4657]
[1756037626919,0.022,4762.8,4762.7,6.2353]
[1756037627326,0.3183,4762.8,4762.7,6.2353]
[1756037627527,0.7696,4762.8,4762.7,6.2353]
[1756037628056,0.7696,4762.8,4762.7,6.2343]
[1756037629435,0.7696,4762.8,4762.7,2.7263]
[1756037629629,0.7696,4762.8,4762.7,6.2343]
[1756037631654,0.3183,4762.8,4762.7,6.2343]
[1756037632172,0.022,4762.8,4762.7,6.2343]
[1756037632350,0.022,4762.8,4762.7,8.64944935]
[1756037632534,0.022,4762.8,4762.7,10.2355604]
[1756037632860,0.022,4762.8,4762.7,9.10454935]
[1756037634061,0.022,4762.8,4762.7,9.20934935]
[1756037637685,0.022,4762.8,4762.7,8.75424935]
[1756037639766,0.022,4762.8,4762.7,6.6546]
[1756037639970,0.022,4762.8,4762.7,6.3391]
[1756037639971,0.3281,4762.8,4762.7,6.3391]
[1756037640266,0.7987,4762.8,4762.7,6.3381]
[1756037640643,0.7987,4762.8,4762.7,2.8311]
[1756037640842,0.7987,4762.8,4762.7,6.3381]
[1756037641339,0.7987,4762.8,4762.7,6.2333]
[1756037643170,2.89830527,4762.8,4762.7,2.0663]
[1756037643393,0.9035,4762.8,4762.7,5.121]
[1756037644077,0.4329,4762.8,4762.7,2.275]
[1756037644276,0.9035,4762.8,4762.7,5.781]
[1756037644484,0.7987,4762.8,4762.7,5.781]
[1756037645269,2.89830527,4762.8,4762.7,6.217]
[1756037645796,2.89830527,4762.8,4762.7,9.723]
[1756037646007,2.89830527,4762.8,4762.7,6.217]
[1756037646162,2.89830527,4762.8,4762.7,9.723]
[1756037647004,0.7987,4762.8,4762.7,9.723]
[1756037648420,0.3281,4762.8,4762.7,9.723]
[1756037649321,0.022,4762.8,4762.7,11.28400193]
[1756037649522,0.022,4762.8,4762.7,11.73910193]
[1756037649815,0.022,4762.8,4762.7,13.83875128]
[1756037651891,0.022,4762.8,4762.7,9.89675128]
[1756037653923,0.3281,4762.8,4762.7,5.3715]
[1756037654124,0.8861,4762.8,4762.7,5.3715]
[1756037655224,0.1268,4762.8,4762.7,6.0315]
[1756037655527,0.022,4762.8,4762.7,6.347]
[1756037656323,0.3281,4762.8,4762.7,6.0315]
[1756037657928,0.3281,4762.8,4762.7,6.0325]
[1756037658539,0.3281,4762.8,4762.7,1.615]
[1756037658834,0.9035,4762.8,4762.7,5.124]
[1756037659037,0.9035,4762.8,4762.7,1.615]
[1756037659224,0.4329,4762.8,4762.7,1.615]
[1756037659428,0.4329,4762.8,4762.7,5.124]
[1756037660461,0.1268,4762.8,4762.7,6.0995]
[1756037660746,0.9035,4762.8,4762.7,5.125]
[1756037661313,3.00310527,4762.8,4762.7,5.125]
[1756037661626,0.9035,4762.8,4762.7,5.125]
[1756037661823,0.4329,4762.8,4762.7,5.125]
[1756037662397,0.4329,4762.8,4762.7,1.615]
[1756037662598,2.98660527,4762.8,4762.7,5.125]
[1756037662806,2.98660527,4762.8,4762.7,1.615]
[1756037663108,2.98660527,4762.8,4762.7,5.125]
[1756037664092,2.98660527,4762.8,4762.7,1.615]
[1756037664296,2.98660527,4762.8,4762.7,5.125]
[1756037664519,5.98660527,4762.8,4762.7,5.125]
[1756037664797,2.09978162,4762.4,4762.3,0.001]
[1756037665010,5.50628162,4762.4,4762.3,3.511]
[1756037665230,5.96038162,4762.4,4762.3,3.511]
[1756037666438,6.28902462,4762.4,4762.3,3.511]
[1756037667798,6.28902462,4762.4,4762.3,0.001]
[1756037668003,6.28902462,4762.4,4762.3,3.511]
[1756037669610,5.96038162,4762.4,4762.3,0.001]
[1756037669815,5.96038162,4762.4,4762.3,3.511]
[1756037671120,5.96038162,4762.4,4762.3,0.001]
[1756037671324,5.96038162,4762.4,4762.3,3.511]
[1756037671712,6.59183562,4762.4,4762.3,3.511]
[1756037672368,3.0,4762.3,4761.8,1e-08]
[1756037672537,2.4017021,4761.9,4761.8,1e-08]
[1756037672911,5.8558021,4761.9,4761.8,1e-08]
[1756037673116,6.4873381,4761.9,4761.8,3.52000001]
[1756037674735,6.0332381,4761.9,4761.8,3.52000001]
[1756037676938,6.4873381,4761.9,4761.8,3.52000001]
[1756037679132,6.4873381,4761.9,4761.8,1e-08]
[1756037679329,6.4873381,4761.9,4761.8,3.52100001]
[1756037681115,6.36422262,4761.4,4761.3,1e-08]
[1756037681464,10.3119655,4761.4,4761.3,1e-08]
[1756037681632,10.7660655,4761.4,4761.3,1e-08]
[1756037681815,9.5862935,4761.4,4761.3,1e-08]
[1756037682460,2.10044319,4760.9,4760.8,1e-08]
[1756037682757,6.94694319,4760.9,4760.8,1e-08]
[1756037682964,7.40104319,4760.9,4760.8,1e-08]
[1756037684561,8.36152553,4760.9,4760.8,1e-08]
[1756037685658,2.10075206,4760.2,4759.7,1.615]
[1756037685962,2.40245206,4760.2,4759.7,1.615]
[1756037686161,5.85655206,4760.2,4759.7,1.615]
[1756037686319,6.81715021,4760.2,4759.7,1.615]
[1756037690363,6.48832906,4760.2,4759.7,1.615]
[1756037693355,6.81716312,4760.2,4759.7,1.615]
[1756037693554,6.81716312,4760.2,4759.3,3.536]
[1756037696366,2.10088447,4759.9,4759.3,3.536]
[1756037696566,2.49508447,4759.9,4759.3,3.536]
[1756037696792,5.96488447,4759.9,4759.3,0.001]
[1756037697089,6.59673247,4759.9,4759.3,0.001]
[1756037697667,6.59673247,4759.9,4759.8,1e-08]
[1756037697870,7.86073247,4759.9,4759.8,1e-08]
[1756037698887,38.31250216,4759.9,4759.8,1e-08]
[1756037699987,1.264,4759.7,4759.1,1e-08]
[1756037700157,1.264,4759.7,4758.8,1e-08]
[1756037700158,2.10123762,4759.1,4758.8,1e-08]
[1756037700358,5.49552593,4758.9,4758.8,1e-08]
[1756037700592,5.49552593,4758.9,4758.8,0.00100001]
[1756037700958,5.96532593,4758.9,4758.8,0.00100001]
[1756037701475,5.96532593,4758.9,4758.3,0.001]
[1756037701476,2.10154673,4758.4,4758.3,0.001]
[1756037701679,2.49574673,4758.4,4758.3,0.001]
[1756037701877,5.96554673,4758.4,4758.3,0.001]
[1756037702194,6.04981873,4758.4,4758.3,0.001]
[1756037703078,6.37876871,4758.4,4758.3,0.001]
[1756037703280,5.61956871,4758.4,4758.3,0.3164]
[1756037703593,5.61956871,4758.4,4758.3,0.7566]
[1756037703594,0.51802198,4758.4,4758.3,0.7566]
[1756037703773,0.43374998,4758.4,4758.3,0.7566]
[1756037704183,2.53529671,4758.4,4758.3,0.7566]
[1756037705793,3.43374998,4758.4,4758.3,0.7566]
[1756037705990,5.53529671,4758.4,4758.3,0.7566]
[1756037708393,0.43374998,4758.4,4758.3,0.7566]
[1756037708594,2.20634673,4758.4,4758.3,0.7566]
[1756037709504,2.20634673,4758.4,4758.3,0.3164]
[1756037709803,2.20634673,4758.4,4758.3,0.7566]
[1756037710304,0.1048,4758.4,4758.3,0.7566]
[1756037712407,2.20634673,4758.4,4758.3,0.7566]
[1756037713203,0.1048,4758.4,4758.3,0.7566]
[1756037715916,0.1048,4758.4,4758.3,4.1129509]
[1756037716116,0.32888581,4758.5,4758.4,2.76154673]
[1756037716411,0.1048,4759.6,4759.1,0.66]
[1756037716574,0.32884178,4759.5,4759.3,0.66]
[1756037716777,0.32884178,4759.5,4759.4,3.20130518]
[1756037716975,0.32884178,4759.5,4759.4,4.69121841]
[1756037717447,0.32884178,4759.5,4759.4,5.02005941]
[1756037719314,0.002,4759.8,4759.7,2.76097275]
[1756037719484,0.002,4759.8,4759.7,6.61137275]
[1756037719681,0.002,4759.8,4759.7,7.05157275]
[1756037720220,0.002,4759.8,4759.7,7.98481923]
[1756037722726,0.002,4759.8,4759.7,8.08961923]
[1756037722889,0.002,4759.8,4759.7,8.19641923]
[1756037725416,0.002,4759.8,4759.7,6.09544648]
[1756037725624,0.002,4759.8,4759.7,2.56044648]
[1756037725821,2.50342861,4759.8,4759.7,3.6398]
[1756037726329,2.96592861,4759.8,4759.7,3.533]
[1756037727106,2.96592861,4759.8,4759.2,1.616]
[1756037727325,0.1048,4759.4,4759.3,3.534]
[1756037728701,0.1048,4759.4,4759.3,3.8467]
[1756037728912,0.1048,4759.4,4759.3,4.284]
[1756037731321,0.1048,4759.4,4759.3,4.34920344]
[1756037731497,0.1048,4759.4,4759.3,7.54765276]
[1756037731698,0.002,4759.8,4759.4,0.66]
[1756037731899,0.002,4759.8,4759.7,0.9727]
[1756037732132,0.002,4759.8,4759.7,4.5037]
[1756037732502,0.002,4759.8,4759.7,4.941]
[1756037732906,0.002,4759.8,4759.7,4.5037]
[1756037734742,0.002,4759.8,4759.7,4.941]
[1756037735840,0.002,4759.8,4759.7,4.5037]
[1756037736204,0.002,4759.8,4759.7,4.941]
[1756037736407,0.002,4759.8,4759.7,4.5037]
[1756037737447,0.002,4759.8,4759.7,4.941]
[1756037738668,0.002,4759.8,4759.7,7.04197275]
[1756037738811,0.002,4759.8,4759.7,4.941]
[1756037739617,0.002,4759.8,4759.7,7.04197275]
[1756037740160,0.002,4759.8,4759.7,4.941]
[1756037740858,0.002,4759.8,4759.7,0.66]
[1756037741012,0.2977,4759.8,4759.7,4.188]
[1756037741414,0.002,4759.8,4759.7,4.188]
[1756037741842,0.2977,4759.8,4759.7,4.188]
[1756037742244,0.002,4759.8,4759.7,4.5007]
[1756037742449,0.002,4759.8,4759.7,4.938]
[1756037742847,0.002,4759.8,4759.7,8.88]
[1756037743652,0.002,4759.8,4759.7,8.4427]
[1756037743849,0.002,4759.8,4759.7,10.98097275]
[1756037745352,0.002,4759.8,4759.7,12.2996539]
[1756037748448,0.002,4760.0,4759.7,12.2996539]
[1756037748449,0.002,4760.0,4759.9,2.76088447]
[1756037748650,0.002,4760.0,4759.9,6.59858447]
[1756037748958,0.002,4760.0,4759.9,7.03588447]
[1756037749160,0.002,4760.0,4759.9,7.12007947]
[1756037749329,0.002,4760.0,4759.9,13.20195747]
[1756037750154,0.002,4760.0,4759.9,13.30675747]
[1756037751462,0.002,4760.0,4759.9,13.50273284]
[1756037754363,0.002,4760.0,4759.9,13.30675747]
[1756037756978,0.002,4760.0,4759.9,12.86645747]
[1756037758335,0.2972,4760.0,4759.9,12.55475747]
[1756037759069,0.002,4760.0,4759.9,12.55475747]
[1756037760808,0.2972,4760.0,4759.9,4.0448]
[1756037760969,0.2972,4760.0,4759.9,7.462]
[1756037760970,0.7618,4760.0,4759.9,7.462]
[1756037761691,0.7618,4760.0,4759.9,8.122]
[1756037765222,2.86264033,4760.0,4759.9,3.94]
[1756037765382,0.7618,4760.0,4759.9,3.94]
[1756037765727,2.86264033,4760.0,4759.9,7.461]
[1756037766023,0.7618,4760.0,4759.9,7.461]
[1756037767497,0.7618,4760.0,4759.9,9.077]
[1756037768227,0.7618,4760.0,4759.9,9.27290842]
[1756037768392,0.2972,4760.0,4759.9,9.27290842]
[1756037768592,0.002,4760.0,4759.9,9.27290842]
[1756037768792,0.002,4760.0,4759.9,12.79849289]
[1756037769101,0.002,4760.0,4759.9,14.29043776]
[1756037770032,0.002,4760.0,4759.9,13.83913776]
[1756037770229,0.002,4760.0,4759.9,11.73825329]
[1756037770437,0.002,4760.0,4759.9,13.83913776]
[1756037771128,0.002,4760.0,4759.9,14.29043776]
[1756037771434,0.002,4760.0,4759.9,11.73825329]
[1756037772099,0.002,4760.0,4759.9,13.83913776]
[1756037772335,0.002,4760.0,4759.9,11.73825329]
[1756037773130,0.002,4760.0,4759.9,11.73725329]
[1756037773294,0.7618,4760.0,4759.9,6.41190842]
[1756037773489,0.7618,4760.0,4759.9,9.93090842]
[1756037775434,0.7618,4760.0,4759.9,5.75190842]
[1756037775637,0.7618,4760.0,4759.9,9.27090842]
[1756037776798,0.7618,4760.0,4759.9,5.75190842]
[1756037776993,2.86264033,4760.0,4759.9,9.26990842]
[1756037777199,2.86264033,4760.0,4759.9,9.27032889]
[1756037777505,2.86264033,4760.0,4759.9,9.27034262]
[1756037778040,0.7618,4760.0,4759.9,9.27034247]
[1756037778199,0.7618,4760.0,4759.9,9.27035087]
[1756037778629,0.7618,4760.0,4759.9,9.074]
[1756037778842,2.86264033,4760.0,4759.9,9.074]
[1756037779034,0.7618,4760.0,4759.9,9.074]
[1756037779197,0.7618,4760.0,4759.9,5.556]
[1756037779536,0.7618,4760.0,4759.9,9.074]
[1756037780701,0.2972,4760.0,4759.9,9.074]
[1756037787247,0.7362,4760.0,4759.9,9.074]
[1756037787634,0.2972,4760.0,4759.9,9.074]
[1756037787834,0.002,4760.0,4759.9,9.3594]
[1756037788225,0.002,4760.0,4759.9,12.12028447]
[1756037788424,0.002,4760.0,4759.9,12.56628447]
[1756037788744,0.002,4760.0,4759.9,10.4654]
[1756037788956,0.002,4760.0,4759.9,10.0194]
[1756037789257,0.002,4760.0,4759.9,12.56628447]
[1756037790452,0.002,4760.0,4759.9,10.0194]
[1756037790858,0.002,4760.0,4759.9,10.4654]
[1756037791058,0.002,4760.0,4759.9,10.1242]
[1756037791876,0.3171,4760.0,4759.9,9.8388]
[1756037792059,0.3171,4760.0,4759.9,9.734]
[1756037792428,0.002,4760.0,4759.9,12.12028447]
[1756037792622,0.002,4760.0,4759.9,13.84356942]
[1756037792869,0.002,4760.0,4759.9,13.95036942]
[1756037795969,0.002,4760.0,4759.9,13.50436942]
[1756037796269,0.022,4760.8,4759.9,13.50436942]
[1756037796270,0.042,4762.4,4760.9,2.76044319]
[1756037796566,0.1048,4762.1,4760.9,8.18084319]
[1756037796753,0.1048,4762.1,4760.9,8.8231529]
[1756037796966,0.1048,4762.1,4760.9,13.31967393]
[1756037797132,0.042,4762.4,4760.9,13.36517164]
[1756037797334,0.1048,4762.3,4760.9,13.46994019]
[1756037797634,0.042,4762.4,4760.9,13.62835643]
[1756037797832,0.042,4762.4,4761.2,2.76031084]
[1756037798062,0.042,4762.4,4761.2,9.7849891]
[1756037798363,0.042,4762.4,4761.2,12.07000541]
[1756037799369,1e-08,4761.4,4761.3,5.76026673]
[1756037799534,1e-08,4761.4,4761.3,6.24194499]
[1756037799736,1e-08,4761.4,4761.3,6.68794499]
[1756037800528,1e-08,4761.4,4761.3,7.81358685]
[1756037800732,1e-08,4761.4,4761.3,8.40339501]
[1756037801360,1e-08,4761.4,4761.3,9.52819967]
[1756037802370,1e-08,4761.4,4761.3,8.40339501]
[1756037802569,1e-08,4761.4,4761.3,8.48755301]
[1756037803070,1e-08,4761.4,4761.3,9.61235767]
[1756037803364,1e-08,4761.4,4761.3,8.48755301]
[1756037803569,1e-08,4761.4,4761.3,9.61235767]
[1756037804367,1e-08,4761.4,4761.3,8.48755301]
[1756037805580,1e-08,4761.4,4761.3,12.02555301]
[1756037805946,0.00200001,4761.4,4761.3,12.02555301]
[1756037806563,0.00200001,4761.4,4761.3,8.48755301]
[1756037806871,0.00200001,4761.4,4761.3,12.02555301]
[1756037807250,0.00200001,4761.4,4761.3,12.02409257]
[1756037808680,1e-08,4761.4,4761.3,12.02409257]
[1756037810544,1e-08,4761.4,4761.3,12.02400742]
[1756037810779,1e-08,4761.4,4761.3,12.12849751]
[1756037813975,0.4847,4762.4,4762.3,6.6778257]
[1756037814160,0.787,4762.4,4762.3,12.02055837]
[1756037814362,0.787,4762.4,4762.3,12.12535837]
[1756037815339,0.787,4762.4,4762.3,13.54788343]
[1756037816978,0.3443,4762.4,4762.3,13.54788343]
[1756037817342,0.3443,4762.4,4762.3,13.54791525]
[1756037818194,0.042,4762.4,4762.3,13.54791525]
[1756037819481,0.4647,4762.8,4762.5,2.09973753]
[1756037819785,0.022,4762.8,4762.7,2.75964935]
[1756037819946,0.3243,4762.8,4762.7,3.05921384]
[1756037820342,0.646,4762.8,4762.7,3.05946377]
[1756037821984,0.646,4762.8,4762.7,6.58946377]
[1756037823481,0.646,4762.8,4762.7,0.95981442]
[1756037823656,0.646,4762.8,4762.7,4.48981442]
[1756037824122,0.646,4762.8,4762.7,0.19501442]
[1756037824257,3.33660871,4762.8,4762.7,0.19501442]
[1756037824455,3.33660871,4762.8,4762.7,3.72501442]
[1756037824960,1.23700344,4762.8,4762.7,3.72501442]
[1756037825571,0.7508,4762.8,4762.7,3.72501442]
[1756037825776,0.7508,4762.8,4762.7,7.60101441]
[1756037826076,0.7508,4762.8,4762.7,7.40599999]
[1756037826271,0.7508,4762.8,4762.7,7.60201077]
[1756037826797,0.7508,4762.8,4762.7,7.60101077]
[1756037827897,0.7508,4762.8,4762.7,4.07201077]
[1756037828199,0.7508,4762.8,4762.7,7.60101077]
[1756037829558,0.7508,4762.8,4762.7,4.07201077]
[1756037829793,0.7508,4762.8,4762.7,7.60101077]
[1756037830095,1.07039064,4762.8,4762.7,7.60001077]
[1756037831271,3.16999591,4762.8,4762.7,4.07201077]
[1756037831464,3.16999591,4762.8,4762.7,0.19601078]
[1756037831792,3.16999591,4762.8,4762.7,3.72301078]
[1756037831963,1.07039064,4762.8,4762.7,3.72301078]
[1756037832359,3.16999591,4762.8,4762.7,3.72301078]
[1756037832559,1.07039064,4762.8,4762.7,3.72301078]
[1756037832763,3.16999591,4762.8,4762.7,3.72317961]
[1756037833904,1.07039064,4762.8,4762.7,3.72317961]
[1756037834307,0.4291,4762.8,4762.7,3.72317961]
[1756037834513,0.8718,4762.8,4762.7,7.5991796]
[1756037835474,0.4291,4762.8,4762.7,7.5991796]
[1756037836197,0.4291,4762.8,4762.7,7.40299999]
[1756037836406,0.4291,4762.8,4762.7,7.59914114]
[1756037837213,0.022,4762.8,4762.7,12.59402474]
[1756037837771,0.022,4762.8,4762.7,13.05172474]
[1756037840493,0.002,4762.9,4762.8,6.61360526]
[1756037840692,0.002,4762.9,4762.8,7.55304641]
[1756037841381,0.002,4762.9,4762.8,7.63719441]
[1756037841608,0.002,4762.9,4762.8,9.77907241]
[1756037842767,0.002,4762.9,4762.8,9.77890334]
[1756037844335,0.002,4762.9,4762.8,13.30590334]
[1756037844542,0.002,4762.9,4762.8,13.41070334]
[1756037844741,0.002,4762.9,4762.8,13.41065337]
[1756037845441,0.002,4762.9,4762.8,9.88365337]
[1756037845615,0.002,4762.9,4762.8,13.40965337]
[1756037846017,0.002,4762.9,4762.8,13.21373126]
[1756037846343,0.002,4763.3,4763.2,3.83699999]
[1756037846553,0.002,4763.3,4763.2,11.93335748]
[1756037846912,0.002,4763.3,4763.2,12.50215748]
[1756037851836,0.3106,4763.3,4763.2,10.40272853]
[1756037852038,0.7746,4763.3,4763.2,9.73972853]
[1756037852360,0.7746,4763.3,4763.2,9.17092853]
[1756037852562,0.7746,4763.3,4763.2,9.83092853]
[1756037855734,0.3106,4763.3,4763.2,9.83092853]
[1756037856245,0.7746,4763.3,4763.2,9.83099459]
[1756037856445,0.7746,4763.3,4763.2,6.30799459]
[1756037856749,0.3106,4763.3,4763.2,6.30799459]
[1756037856941,0.7746,4763.3,4763.2,9.82999459]
[1756037857341,0.7746,4763.3,4763.2,6.30799459]
[1756037857554,0.7746,4763.3,4763.2,9.82999459]
[1756037857768,0.3106,4763.3,4763.2,9.82999459]
[1756037857963,0.3106,4763.3,4763.2,6.30799459]
[1756037858163,0.3106,4763.3,4763.2,9.82999459]
[1756037860650,0.002,4763.3,4763.2,9.82999459]
[1756037862753,0.002,4763.3,4763.2,11.92942354]
[1756037863068,0.002,4763.3,4763.2,12.22532354]
[1756037863857,0.002,4763.3,4763.2,10.12589459]
[1756037864366,0.3106,4763.3,4763.2,6.30799459]
[1756037864563,0.3106,4763.3,4763.2,9.82699459]
[1756037864969,0.002,4763.3,4763.2,9.82699459]
[1756037866266,0.002,4763.3,4763.2,9.82731816]
[1756037866838,0.3106,4763.3,4763.2,9.82731816]
[1756037868770,0.3106,4763.3,4763.2,9.82531816]
[1756037868969,0.3106,4763.3,4763.2,11.92474711]
[1756037869175,0.3106,4763.3,4763.2,9.82531816]